Cogmind - Beta 15 @@@ ROGUE MODE // 2025.05.05 @ 23:26:46 Player: surprisinglarge Result: Destroyed by UW-VUJ(R) with Subdweller Beam Cannon Performance ------------- Evolutions (0) 0 Regions Visited (2) 400 Robots Destroyed (4) 20 Value Destroyed (130) 130 Prototype IDs (0) 0 Alien Tech Used (0) 0 Bonus (-15) -15 TOTAL SCORE: 535 Bonus ------- Friendly Fire -15 Cogmind --------- Core Integrity 0/250 Matter 299/300 Energy 86/100 System Corruption 0% Temperature Cool (9) Movement Walking (120) Location -10/Subcaves Parts ------- > --- POWER (1) -------- (None) > --- PROPULSION (2) --- Aluminum Leg > --- UTILITY (2) ------ Small Storage Unit > --- WEAPON (2) ------- Beam Cannon > --- INVENTORY (8) ---- (None) Peak State ------------ > --- POWER ------------ Ion Engine > --- PROPULSION ------- Aluminum Leg Aluminum Leg > --- UTILITY ---------- Small Storage Unit > --- WEAPON ----------- Assault Rifle Light Assault Rifle > --- INVENTORY -------- (None) [Rating: 6] Favorites ----------- Power Ion Engine Engine Ion Engine Propulsion Aluminum Leg Leg Aluminum Leg Utility Small Storage Unit Storage Small Storage Unit Weapon Light Assault Rifle Energy Cannon Beam Cannon Ballistic Gun Light Assault Rifle Build | -11 -10 -10 ------- Run | Yrd Mat Sub Slots Evolved . | . . . Power . | . . . Propulsion . | . . . Utility . | . . . Weapon . | . . . Parts Attached 8 | 6 . 2 Power 1 | 1 . . Engine 1 | 1 . . Core . | . . . Reactor . | . . . Propulsion 3 | 2 . 1 Treads . | . . . Leg 3 | 2 . 1 Wheel . | . . . Hover . | . . . Flight . | . . . Utility 1 | 1 . . Device . | . . . Storage 1 | 1 . . Processor . | . . . Hackware . | . . . Protection . | . . . Artifact . | . . . Weapon 3 | 2 . 1 Energy Gun . | . . . Energy Cannon 1 | . . 1 Ballistic Gun 2 | 2 . . Ballistic Cannon . | . . . Launcher . | . . . Special Weapon . | . . . Impact Weapon . | . . . Slashing Weapon . | . . . Piercing Weapon . | . . . Special Melee Weapon . | . . . Unidentified Prototypes . | . . . Parts Lost 5 | . . 5 Power 1 | . . 1 Propulsion 2 | . . 2 Utility . | . . . Weapon 2 | . . 2 Highest Loss Streak 4 | . . 4 To Critical Strikes . | . . . Average Backups 1 | . 1 1 Power . | . . . Propulsion . | . . . Utility . | . . . Weapon . | . . . Tool/Special . | . . . Unused Backups . | . . . Power . | . . . Propulsion . | . . . Utility . | . . . Weapon . | . . . Tool/Special . | . . . Average Slot Usage (%) 82 | . 85 79 Engine 12 | . 14 11 Leg 26 | . 28 25 Storage 14 | . 14 14 Energy Cannon 1 | . . 3 Ballistic Gun 26 | . 28 24 Peak Build Rating 6 | 6 6 6 Average Rating 5 | 4 6 5 On Entrance 4 | . 6 6 Naked Turns . | . . . Heaviest Build 14 | 13 13 14 Greatest Support 20 | 20 20 20 Greatest Overweight (x) 1 | . . 1 Average Overweight (x) . | . . . Largest Inventory Capacity 8 | 8 8 8 Average Capacity 7 | 7 8 8 Most Carried 3 | 3 2 2 Average Carried 1 | . 1 1 Final Capacity 8 | 8 8 8 Final Carried 2 | . 2 . Class Distribution -------------------- 100% | Mutant Dominant Class ---------------- Mutant | -10/Materials Mutant | -10/Subcaves Resources | -11 -10 -10 ----------- Run | Yrd Mat Sub Matter Collected 315 | 193 76 46 Remotely . | . . . Salvage Created 155 | . 11 144 Parts 13 | . 1 12 Haulers Intercepted . | . . . Recyclers Shooed 1 | . 1 . Parts Field Recycled . | . . . Retrieved Matter . | . . . Parts Self-Destructed 2 | . . 2 Prevented . | . . . Kills | -11 -10 -10 ------- Run | Yrd Mat Sub Combat Hostiles Destroyed 4 | . 1 3 Guns 3 | . 1 2 Cannons 1 | . . 1 Classes Destroyed 2 | . 1 1 Swarmer 1 | . 1 . Subdweller 3 | . . 3 Best Kill Streak 3 | . 1 3 Combat Bots Only 3 | . 1 3 Max Kills in Single Turn 1 | . 1 1 Gunslinging . | . . . Exploded . | . . . Melee . | . . . Uniques/NPCs Destroyed . | . . . Combat | -11 -10 -10 -------- Run | Yrd Mat Sub Hostile Shots Fired 61 | . . 61 Missed 25 | . . 25 Hits 36 | . . 36 Projectile 36 | . . 36 Critical Strikes 1 | . . 1 Damage Taken 862 | . . 862 Core 273 | . . 273 Absorbed by Shields . | . . . Core Remaining (%) 100 | 100 . . Volleys Fired 29 | 1 2 26 Largest 2 | 2 2 2 Hottest 80 | 40 40 80 Shots Fired 52 | 2 4 46 Gun 36 | 2 4 30 Cannon 16 | . . 16 Launcher . | . . . Special . | . . . Kinetic 36 | 2 4 30 Thermal 16 | . . 16 Explosive . | . . . Electromagnetic . | . . . Robot Hit Streak 16 | . 2 16 Robot Miss Streak 1 | . 1 1 Penetration Max . | . . . Secondary Targets 1 | . . 1 Max Gunslinging Chain 1 | . . 1 Shots Hit Robots 40 | . 2 38 Core Hits 10 | . 1 9 Critical Kills . | . . . Critical Parts Destroyed . | . . . Critical Strikes . | . . . Melee Attacks . | . . . Impact . | . . . Slashing . | . . . Piercing . | . . . Sneak Attacks . | . . . Combat Hostiles . | . . . Follow-up Attacks . | . . . Damage Inflicted 306 | . 35 271 Guns 185 | . 33 152 Cannons 119 | . . 119 Explosions . | . . . Melee . | . . . Ramming 2 | . 2 . Kinetic 185 | . 33 152 Thermal 119 | . . 119 Explosive . | . . . Electromagnetic . | . . . Impact . | . . . Slashing . | . . . Piercing . | . . . Highest Corruption . | . . . Average Corruption . | . . . Corruption Purged . | . . . Corruption Blocked . | . . . Overload Shots . | . . . Overflow Damage . | . . . Projectiles . | . . . Explosions . | . . . Melee . | . . . Knockbacks . | . . . Impact . | . . . Kinetic . | . . . Secondary . | . . . Self-Inflicted Damage . | . . . Shots . | . . . Rammed . | . . . Targets Rammed 3 | . 3 . Kicked 3 | . 3 . Crushed . | . . . Highest Temperature 249 | . . 249 Average Temperature 74 | . . 74 Received Heat Transfer 458 | . . 458 Siege Activations . | . . . Martial Activations . | . . . Shielding Activations . | . . . Robots Disrupted . | . . . Combat Hostiles . | . . . Robots Corrupted . | . . . Combat Hostiles . | . . . Parts Fried . | . . . Impact Corruptions . | . . . Robots Melted . | . . . Combat Hostiles . | . . . Parts Melted . | . . . Heat Transferred 259 | . . 259 Parts Sabotaged . | . . . Parts Stolen . | . . . Parts Stripped . | . . . Power Chain Reactions . | . . . Alert | -11 -10 -10 ------- Run | Yrd Mat Sub Maximum Alert Level . | . . . Low Security (%) 100 | 100 100 . Level 1 . | . . . Level 2 . | . . . Level 3 . | . . . Level 4 . | . . . Level 5 . | . . . High Security . | . . . Max Security . | . . . Peak Influence 20 | . 20 . Initial . | . . . Average . | . 1 . Influence Increases 20 | . 20 . Destroy 0b10 Robot/C 20 | . 20 . Influence Decreases 20 | . 20 . Time Decay 20 | . 20 . Squads Dispatched 1 | . 1 . Investigation 1 | . 1 . Extermination . | . . . Reinforcement . | . . . Assault . | . . . Garrison . | . . . Intercept . | . . . Searches Triggered . | . . . Construction Impeded . | . . . Haulers Reinforced . | . . . Active Scanning Responses . | . . . Cargo Convoy Interrupts . | . . . Stealth | -11 -10 -10 --------- Run | Yrd Mat Sub Distress Signals 1 | . 1 . Communications Jammed . | . . . Distress Signals . | . . . Times Spotted 7 | . 3 4 Peak Tracking Total 4 | . 3 4 Tactical Retreats . | . . . Traps | -11 -10 -10 ------- Run | Yrd Mat Sub Traps Triggered . | . . . Indirectly . | . . . Trap Hack Attempts . | . . . Triggered . | . . . Disarmed . | . . . Reprogrammed . | . . . Reused . | . . . Traps Extracted . | . . . Installed . | . . . Triggered . | . . . Machines | -11 -10 -10 ---------- Run | Yrd Mat Sub Machines Disabled . | . . . Max in Single Turn . | . . . Machines Repaired . | . . . Machines Dismantled . | . . . Machines Sabotaged . | . . . Overloaded Fab Kills . | . . . Hacking | -11 -10 -10 --------- Run | Yrd Mat Sub Machines Accessed . | . . . Terminals . | . . . Fabricators . | . . . Repair Stations . | . . . Recycling Units . | . . . Scanalyzers . | . . . Garrison Access . | . . . Total Hacks . | . . . Successful . | . . . Failed . | . . . Catastrophic . | . . . Database Lockouts . | . . . Manual . | . . . Terminals . | . . . Fabricators . | . . . Repair Stations . | . . . Recycling Units . | . . . Scanalyzers . | . . . Garrison Access . | . . . Terminal Hacks . | . . . Fabricator Hacks . | . . . Repair Station Hacks . | . . . Recycling Unit Hacks . | . . . Scanalyzer . | . . . Garrison Access Hacks . | . . . Unauthorized Hacks . | . . . Terminals . | . . . Fabricators . | . . . Repair Stations . | . . . Recycling Units . | . . . Scanalyzers . | . . . Garrison Access . | . . . Data Cores Recovered . | . . . Used . | . . . Hacking Detections . | . . . Full Trace Events . | . . . Feedback Events . | . . . Feedback Blocked . | . . . Robot Schematics Acquired . | . . . Robots Built . | . . . Authchips . | . . . Time . | . . . Total Robot Build Rating . | . . . Part Schematics Acquired . | . . . Parts Built . | . . . Authchips . | . . . Time . | . . . Total Part Build Rating . | . . . Parts Repaired . | . . . Time . | . . . Parts Recycled . | . . . Recycled Matter . | . . . Retrieved Matter . | . . . Retrieved Components . | . . . Parts Scanalyzed . | . . . Part Schematics Acquired . | . . . Parts Damaged . | . . . Bothacking | -11 -10 -10 ------------ Run | Yrd Mat Sub Used RIF Installer . | . . . Robots Hacked . | . . . Non-combat . | . . . Combat . | . . . Robot Hacks Applied . | . . . Relay Couplers Released . | . . . Fabnet Peak Effective % . | . . . Robots Rewired . | . . . Allies Hacked . | . . . Hacks Repelled . | . . . Allies | -11 -10 -10 -------- Run | Yrd Mat Sub Total Allies . | . . . Largest Group . | . . . Highest-Rated Group . | . . . Highest-Rated Ally . | . . . Total Orders . | . . . Ally Attacks . | . . . Total Damage . | . . . Kills . | . . . Allies Corrupted . | . . . Allies Melted . | . . . Intel | -11 -10 -10 ------- Run | Yrd Mat Sub Active Infowar (turns) . | . . . Robot Analysis Total . | . . . Derelict Logs Recovered 1 | . . 1 Drone Launches . | . . . Drone Recoveries . | . . . Exploration | -11 -10 -10 ------------- Run | Yrd Mat Sub Turns Passed 526 | 110 214 202 Spaces Moved 367 | 86 170 111 Core 10 | 10 . . Treads . | . . . Legs 357 | 76 170 111 Wheels . | . . . Hover . | . . . Flight . | . . . Fastest Speed 50 | 50 120 120 Average Speed 118 | 111 120 120 Slowest Speed 190 | 120 120 190 Overloaded Moves . | . . . Propulsion Burnouts . | . . . Robots Hopped . | . . . Potential Cave-ins . | . . . Cave-ins Triggered . | . . . Exploration Rate (%) 20 | 7 35 18 Regions Visited 2 Branch Regions 1 Pre-discovered Areas . | . . . Known Exits Taken . | . . . Unknown Exits Taken 2 | 1 1 . Scrap Searched . | . . . Spaces Dug . | . . . Terrain Destroyed . | . . . Melee . | . . . Projectile . | . . . AOE . | . . . Terrain Rammed . | . . . Walls Destroyed . | . . . Machines Disabled . | . . . Actions | -11 -10 -10 --------- Run | Yrd Mat Sub Total 413 | 98 176 139 Wait . | . . . Move 365 | 85 169 111 Hop . | . . . Pick Up 8 | 6 2 . Fast Attach . | . . . Attach 8 | 6 . 2 Detach . | . . . Swap . | . . . Drop . | . . . Fire 29 | 1 2 26 Melee . | . . . Ram . | . . . Kick 3 | . 3 . Crush . | . . . Escape Stasis . | . . . Rewire . | . . . Trap . | . . . Miscellaneous . | . . . Route ------- -11/Scrapyard -10/Materials (discovered 3 exits: [*Mat] / [*Min] / [*Sub]) -10/Subcaves History --------- Turn | Location | Event 3 | -11/Scrapyard | Discovered new exit (range 15) 111 | -11/Scrapyard | Entered Materials 112 | -10/Materials | Met a group of wandering Federalists 264 | -10/Materials | Discovered new exit (range 16) 302 | -10/Materials | Build established: Mutant 307 | -10/Materials | Discovered new exit (range 11) 317 | -10/Materials | Discovered new exit (range 8) 325 | -10/Materials | Entered Subcaves 326 | -10/Subcaves | Continued accompanying wandering Federalists (2) 326 | -10/Subcaves | Approached by a straggling Scientist 330 | -10/Subcaves | Learned Materials stockpile data 478 | -10/Subcaves | Core integrity fell below 50% 516 | -10/Subcaves | Core integrity fell below 20% 518 | -10/Subcaves | Lost 4 parts (1p2n1w) 527 | -10/Subcaves | Destroyed by UW-VUJ(R) with Subdweller Beam Cannon Last Messages --------------- Aluminum Leg destroyed. 6H-LCR(R) destroyed. CN-GKN(c): "I think it's somewhere south of here" Subatomizers dissect the Aluminum Leg. OY-KWH(R) affixes Scrap Shield Fragment to Scrap Shield. Acquired 41 matter. Aluminum Leg destroyed. Ion Engine destroyed. OY-KWH(R) destroyed. Acquired 2 matter. Acquired 1 matter. UW-VUJ(R) affixes Scrap Shield Fragment to Scrap Shield. Acquired 1 matter. UW-VUJ(R) affixes Scrap Shield Fragment to Scrap Shield. Subatomizers dissect the Aluminum Leg. Lgt. Assault Rifle destroyed. Map ----- +----------------------------------------------------+ | ???????????????????????????????????????????# | | ???????????????????????????????????????????# | | ???????????????????????????????????????????# | | ??????????????????????????????????????????## | | ??????????????????????????????????????????# | | ???????????????????????????????????????????????# | | ??????????????????????????????????????????????## | | ?????????????????????????????????????????###### | | ?????????????????????????????????????????# ## | | ?????????????????????????????????????????# | | ?????????????????????????????????????????# # | | ??????????????????###???????????????????## ## | | ?????????????????## #?????????????????## #? | | ?????????????##### #???????????###### # # | | ???????????? #?????????## # | | ????????????? #????##### # | | ??????????????# "????# ## # # | | ??????????????# "???## ## #### | | ??????????????""" ####= #### #?# | | ?????????????? " [ *%! ## #?? ####?? | | ???????????????? """ *c[& =;" ### #?? #????? | | ????????????????" """ =!%* ;### #?# ##? #????? | | ???????????????"" " ##&*&=!*#?####?###?? ?????? | | ???????????????" ????##!%%####?????????? #????? | | ??????????????????????## R! ##????????? #????? | | ??????????????????????#; @ = "#????????? ????? | | ??????????????????????# #??????????? ????? | | ????????????????????? ###???????????? ????? | | ??????????????????? #?????????????? ????? | | ????????????????? #???????????????????? | | ??????????????? ##### ???????????????????? | | ????????????? #????? ??????????????????? | | ????????????# ?????? ?????????????????? | | ????????????? #?????? ????????????????? | | ????????????? ??????? ???????????????? | | ?????????????? ?????????#### ??????????????? | | ?????????????? ?????????????# ?????????????? | | ???????????????? ??????????????? ??????????????? | | ?????????????????????????????????????????????????? | | ?????????????????????????????????????????????????? | | ?????????????????????????????????????????????????? | | ?????????????????????????????????????????????????? | | ?????????????????????????????????????????????????? | | ?????????????????????????????????????????????????? | | ?????????????????????????????????????????????????? | | ?????????????????????????????????????????????????? | | ?????????????????????????????????????????????????? | | ?????????????????????????????????????????????????? | | ?????????????????????????????????????????????????? | | ?????????????????????????????????????????????????? | +----------------------------------------------------+ Best States ------------- Heat Dissipation 25 Energy Generation 10 Energy Capacity 250 Matter Stores 300 Matter Capacity 300 Sight Range 16 Terrain Scan Density 10 Evasion (%) 55 Item Schematics ----------------- None Robot Schematics ------------------ None Fabricated ------------ Nothing Repaired ---------- Nothing Alien Tech Used ----------------- None Achievements -------------- None Challenges ------------ None Game ------ Seed DecoderDerelictCompressor Manual? 0 Play Time 00:06:33 Cumulative 6.3 hours Start 2025.05.05 @ 23:21:15 End 2025.05.05 @ 23:26:46 Sessions 1 Manual Loads 0 Difficulty Rogue Special Mode None Game No. 11 Rogue 10 Adventurer 0 Explorer 1 Win Type - Total 0 Types 0/0/0/0/0/0/0/0/0/0 Lore% 5 Gallery% 11 Achievement% 12 Wizard Run 0 Options --------- Layout 1 ASCII 0 Keyboard 0 Movement Mouse Keybinds 0 Fullscreen 1 Font 32/SmallcapsGlow Map View 50x35 Zoom Use 0% Tactical HUD 0 Map Filters NONE Filters NONE Steam 1 RUN: 35242b29-8d33-4d84-b783-9484f6c0128a